bitfinex/quotes_SOLUSD_20240616
["timestamp","ask_amount","ask_price","bid_price","bid_amount"]
[1718525387103,2.5595,144.56,144.54,7.6793]
[1718525387735,7.21526578,144.57,144.55,7.6786]
[1718525388036,9.77456578,144.57,144.55,7.6786]
[1718525388559,14.89316578,144.57,144.55,2.5595]
[1718525389336,9.77456578,144.57,144.55,25.5962]
[1718525389920,9.77456578,144.57,144.55,7.6788]
[1718525390125,14.89316578,144.57,144.55,2.5595]
[1718525392614,7.21526578,144.57,144.56,2.5594]
[1718525392934,7.21526578,144.57,144.56,7.6783]
[1718525393137,2.5591,144.58,144.56,7.6783]
[1718525393515,7.6773,144.58,144.56,7.6783]
[1718525393813,7.6773,144.58,144.56,2.5594]
[1718525394549,15.3547,144.58,144.55,25.5954]
[1718525395324,2.5593,144.57,144.55,25.5954]
[1718525396329,7.6779,144.57,144.55,2.5595]
[1718525398257,7.6779,144.57,144.55,7.6788]
[1718525398643,2.5593,144.57,144.55,7.6788]
[1718525399864,7.6779,144.57,144.55,2.5595]
[1718525400962,25.5931,144.57,144.54,25.5974]
[1718525401280,2.5595,144.56,144.54,7.6791]
[1718525401564,7.6784,144.56,144.54,7.6791]
[1718525401769,7.6784,144.56,144.54,2.5597]
[1718525401981,2.5596,144.55,144.53,25.5988]
[1718525402279,7.6791,144.55,144.53,2.5599]
[1718525402765,25.5959,144.56,144.53,15.3599]
[1718525402962,2.5596,144.56,144.54,7.6794]
[1718525403380,7.6782,144.57,144.55,2.5596]
[1718525403586,2.5595,144.56,144.54,15.3587]
[1718525403766,7.6784,144.56,144.54,2.5597]
[1718525404783,2.5595,144.56,144.54,7.6793]
[1718525404959,2.5595,144.56,144.54,15.3588]
[1718525405158,2.5595,144.56,144.54,7.6793]
[1718525405679,25.5937,144.57,144.55,2.5596]
[1718525406186,2.5594,144.56,144.54,25.598]
[1718525406783,7.6784,144.56,144.54,2.5597]
[1718525407082,15.3569,144.56,144.54,2.5598]
[1718525407591,23.0344,144.57,144.54,15.3589]
[1718525407753,2.5595,144.56,144.54,15.3589]
[1718525407954,23.0344,144.57,144.54,23.0383]
[1718525408156,2.5594,144.56,144.54,25.5979]
[1718525408352,25.5938,144.57,144.55,2.5596]
[1718525408660,2.5598,144.54,144.52,7.6802]
[1718525408974,2.5598,144.54,144.52,15.3607]
[1718525409187,7.6792,144.55,144.53,7.6799]
[1718525409373,2.5597,144.55,144.53,15.3599]
[1718525409559,2.5597,144.55,144.54,2.5598]
[1718525409764,2.5596,144.55,144.54,2.5598]
[1718525410068,2.5596,144.55,144.53,25.5998]
[1718525410258,2.5596,144.55,144.54,2.5598]
[1718525410983,23.3761,144.56,144.53,25.5998]
[1718525411279,15.358,144.55,144.53,2.5598]
[1718525411464,2.5599,144.54,144.52,7.6803]
[1718525411654,2.56,144.53,144.51,25.6025]
[1718525411861,0.17,144.54,144.52,23.0414]
[1718525412070,3.2398,144.54,144.52,25.6014]
[1718525412281,0.68,144.54,144.53,2.56]
[1718525412477,8.3595,144.54,144.52,7.6803]
[1718525412670,8.3595,144.54,144.52,2.56]
[1718525412878,8.3595,144.54,144.45,15.3197]
[1718525412879,0.68,144.54,144.45,15.3197]
[1718525413277,23.0426,144.52,144.45,15.3197]
[1718525413484,23.0426,144.52,144.49,12.8033]
[1718525413672,2.5604,144.51,144.49,25.6066]
[1718525413986,25.6023,144.52,144.5,2.5605]
[1718525414187,7.21854018,144.51,144.5,2.5605]
[1718525414782,7.21854018,144.51,144.5,7.6816]
[1718525416380,7.21854018,144.51,144.5,2.5605]
[1718525416592,7.21854018,144.51,144.5,25.6054]
[1718525416958,2.5601,144.53,144.51,7.6809]
[1718525417362,29.77696545,144.53,144.51,7.6809]
[1718525417559,34.89696545,144.53,144.51,2.5602]
[1718525417783,42.57696545,144.53,144.51,2.5602]
[1718525417967,42.57696545,144.53,144.5,68.0447]
[1718525417968,2.5601,144.52,144.5,70.6051]
[1718525418489,15.3621,144.51,144.49,2.5606]
[1718525418667,7.681,144.51,144.49,47.5606]
[1718525419487,2.5603,144.51,144.49,52.682]
[1718525419972,7.681,144.51,144.49,47.5606]
[1718525420171,2.5603,144.51,144.49,7.682]
[1718525421192,25.6028,144.52,144.5,2.5605]
[1718525421365,25.6028,144.52,144.49,25.6067]
[1718525421690,2.5604,144.51,144.49,7.6819]
[1718525421893,2.5602,144.52,144.5,15.363]
[1718525422184,2.5602,144.52,144.5,7.6814]
[1718525422391,15.3612,144.52,144.5,2.5604]
[1718525422568,15.3612,144.52,144.5,2.5605]
[1718525422768,7.6806,144.52,144.5,2.5605]
[1718525423269,5.1208,144.51,144.48,5.1217]
[1718525423458,7.6811,144.51,144.49,47.5606]
[1718525424276,7.6811,144.51,144.49,52.682]
[1718525424477,2.5604,144.51,144.49,52.682]
[1718525425363,2.5604,144.51,144.49,60.3641]
[1718525425566,25.603,144.52,144.5,2.5605]
[1718525425887,7.6809,144.52,144.5,2.5605]
[1718525426265,7.6809,144.52,144.5,7.6815]
[1718525426465,2.5603,144.52,144.5,7.6815]
[1718525426685,7.6807,144.52,144.5,7.6815]
[1718525426991,52.81786545,144.53,144.51,2.5603]
[1718525427169,34.89706545,144.53,144.51,7.6809]
[1718525427369,9.77686545,144.53,144.51,23.0426]
[1718525427579,9.77686545,144.53,144.52,45.0]
[1718525430193,7.21686545,144.53,144.52,45.0]
[1718525430374,7.21686545,144.53,144.52,47.5601]
[1718525432393,9.77686545,144.53,144.52,45.0]
[1718525433394,9.77686545,144.53,144.52,47.5601]
[1718525433592,30.25706545,144.53,144.5,7.6814]
[1718525433767,2.5602,144.52,144.5,7.6814]
[1718525434388,30.25706545,144.53,144.5,12.8025]
[1718525434595,2.5602,144.52,144.5,25.605]
[1718525435386,32.81716545,144.53,144.51,2.5603]
[1718525435709,2.5601,144.52,144.51,2.5603]
[1718525435912,2.5601,144.52,144.5,25.6051]
[1718525436288,32.81716545,144.53,144.51,2.5603]
[1718525437189,14.89716545,144.53,144.51,2.5603]
[1718525437395,9.77696545,144.53,144.51,7.681]
[1718525437812,14.89696545,144.53,144.51,2.5603]
[1718525438316,14.89696545,144.53,144.51,7.681]
[1718525441817,9.77696545,144.53,144.51,7.681]
[1718525442398,9.77696545,144.53,144.51,15.362]
[1718525443306,7.21686545,144.53,144.52,2.5601]
[1718525444421,9.77686545,144.53,144.51,25.6033]
[1718525445720,7.21686545,144.53,144.52,2.5601]
[1718525446536,9.77686545,144.53,144.51,25.6033]
[1718525447194,7.21686545,144.53,144.51,23.0431]
[1718525447398,7.21686545,144.53,144.52,2.5601]
[1718525447602,7.21686545,144.53,144.52,15.3609]
[1718525447817,7.679,144.55,144.53,7.6799]
[1718525448024,14.89128996,144.55,144.53,7.6799]
[1718525448194,14.89128996,144.55,144.53,2.5599]
[1718525448401,22.57028996,144.55,144.53,2.5599]
[1718525448594,2.5598,144.54,144.52,7.6801]
[1718525449195,15.359,144.54,144.52,2.56]
[1718525449391,2.56,144.53,144.52,45.0]
[1718525449698,7.68,144.53,144.51,7.6807]
[1718525449902,2.56,144.53,144.51,7.6807]
[1718525450232,25.5987,144.54,144.52,2.5601]
[1718525450415,2.56,144.53,144.51,25.6031]
[1718525451434,2.56,144.53,144.51,7.6807]
[1718525453327,7.68,144.53,144.51,2.5602]
[1718525453523,2.56,144.53,144.51,15.362]
[1718525453714,2.56,144.54,144.52,7.6802]
[1718525454330,7.6797,144.54,144.52,7.6802]
[1718525454634,7.6797,144.54,144.52,2.56]
[1718525455638,15.3592,144.54,144.52,2.56]
[1718525455844,7.21228996,144.55,144.54,15.3589]
[1718525456012,7.21228996,144.55,144.49,15.6871]
[1718525456013,2.5596,144.55,144.53,7.6797]
[1718525456211,2.5596,144.55,144.53,15.3597]
[1718525456835,25.5953,144.56,144.54,2.5598]
[1718525457349,15.3582,144.55,144.52,5.1202]
[1718525457551,7.6792,144.55,144.52,12.8004]
[1718525457836,7.6792,144.55,144.53,7.6799]
[1718525458036,7.6792,144.55,144.53,2.5599]
[1718525458243,2.5598,144.55,144.53,7.6799]
[1718525458449,2.5598,144.55,144.53,15.3599]
[1718525458638,25.5956,144.56,144.54,2.5598]
[1718525458816,7.6788,144.56,144.54,7.6794]
[1718525459016,2.5596,144.56,144.54,7.6794]
[1718525459739,15.357,144.56,144.54,2.5598]
[1718525460170,2.5596,144.56,144.54,7.6794]
[1718525460331,32.80790802,144.57,144.54,23.038]
[1718525460658,32.80790802,144.57,144.55,2.5596]
[1718525460846,30.24850802,144.57,144.54,23.038]
[1718525461147,32.80790802,144.57,144.55,2.5596]
[1718525461554,22.57040802,144.57,144.55,2.5596]
[1718525461734,9.77320802,144.57,144.55,7.6787]
[1718525461934,9.77320802,144.57,144.55,15.3576]
[1718525462150,7.21390802,144.57,144.56,2.5594]
[1718525462540,9.77320802,144.57,144.55,25.5961]
[1718525462856,9.77320802,144.57,144.56,2.5594]
[1718525463230,9.77320802,144.57,144.55,7.6787]
[1718525463642,14.89180802,144.57,144.55,7.6787]
[1718525464150,9.77320802,144.57,144.55,7.6787]
[1718525464529,9.77320802,144.57,144.55,15.3576]
[1718525464755,7.21390802,144.57,144.55,23.0366]
[1718525465065,7.21390802,144.57,144.56,2.5594]
[1718525465642,9.77320802,144.57,144.55,25.5961]
[1718525465848,9.77320802,144.57,144.55,15.3576]
[1718525466154,9.77320802,144.57,144.55,25.5961]
[1718525466775,9.77320802,144.57,144.55,7.6787]
[1718525467067,9.77320802,144.57,144.55,15.3576]
[1718525467244,14.89180802,144.57,144.55,7.6787]
[1718525467446,14.89180802,144.57,144.55,2.5595]
[1718525467740,22.56970802,144.57,144.55,2.5595]
[1718525469059,15.3569,144.56,144.54,2.5597]
[1718525469283,7.6785,144.56,144.54,2.5597]
[1718525469486,15.357,144.56,144.54,2.5597]
[1718525470139,7.6785,144.56,144.54,2.5597]
[1718525470447,2.5595,144.56,144.54,7.6793]
[1718525470633,7.6785,144.56,144.54,7.6793]
[1718525470836,2.5594,144.56,144.54,25.5978]
[1718525471970,32.80780802,144.57,144.55,2.5596]
[1718525472971,14.89210802,144.57,144.55,7.6789]
[1718525474748,14.89210802,144.57,144.55,2.5596]
[1718525474957,22.57000802,144.57,144.55,2.5596]
[1718525475866,9.77330802,144.57,144.55,15.3579]
[1718525476043,9.77330802,144.57,144.55,7.6789]
[1718525476353,14.89190802,144.57,144.55,7.6789]
[1718525477263,9.77330802,144.57,144.55,7.6789]
[1718525477468,9.77330802,144.57,144.55,25.5963]
[1718525479866,9.77330802,144.57,144.55,17.9174]
[1718525480080,14.89200802,144.57,144.55,7.6788]
[1718525480868,22.56990802,144.57,144.55,2.5595]
[1718525481072,2.5594,144.56,144.55,2.5595]
[1718525481571,2.5594,144.56,144.55,2.5596]
[1718525481748,30.24770802,144.57,144.55,2.5596]
[1718525481948,2.5594,144.56,144.55,2.5596]
[1718525482155,32.80710802,144.57,144.55,2.5596]
[1718525482356,2.5595,144.56,144.54,25.5973]
[1718525483966,32.80710802,144.57,144.55,2.5596]
[1718525484974,9.77330802,144.57,144.55,7.6789]
[1718525485152,9.77330802,144.57,144.55,15.3578]
[1718525486374,9.77330802,144.57,144.55,2.5596]
[1718525486375,22.56980802,144.57,144.55,2.5596]
[1718525487248,2.5594,144.56,144.54,25.5971]
[1718525488180,32.80700802,144.57,144.55,2.5596]
[1718525489280,2.5594,144.56,144.54,25.5971]
[1718525493383,2.5594,144.56,144.54,15.3582]
[1718525493586,2.5594,144.56,144.54,25.5971]
[1718525495287,2.5594,144.56,144.54,7.679]
[1718525496989,7.6783,144.56,144.54,7.679]
[1718525497179,7.6783,144.56,144.54,2.5596]
[1718525497571,15.3567,144.56,144.54,2.5596]
[1718525497885,7.21390802,144.57,144.49,15.6871]
[1718525498085,2.56,144.53,144.51,7.6808]
[1718525498593,2.56,144.53,144.51,15.3619]
[1718525498979,2.56,144.53,144.51,7.6808]
[1718525499197,2.56,144.53,144.51,15.3619]
[1718525499694,32.81408342,144.54,144.51,23.0432]
[1718525499863,2.56,144.53,144.51,25.6034]
[1718525500510,2.56,144.53,144.51,7.6808]
[1718525501997,2.56,144.53,144.51,15.3618]
[1718525502288,32.81398342,144.54,144.52,2.5601]
[1718525502889,32.81398342,144.54,144.51,25.6032]
[1718525503079,32.81398342,144.54,144.52,2.5601]
[1718525503589,14.89468342,144.54,144.52,2.5601]
[1718525504085,14.89468342,144.54,144.52,7.6804]
[1718525505005,9.77488342,144.54,144.52,7.6804]
[1718525505303,7.21498342,144.54,144.53,25.6]
[1718525507999,2.5596,144.55,144.53,7.68]
[1718525508300,7.6789,144.55,144.53,7.68]
[1718525508873,7.6789,144.55,144.53,2.56]
[1718525509918,15.3579,144.55,144.53,2.56]
[1718525510119,2.5598,144.54,144.52,25.6007]
[1718525511998,2.5598,144.54,144.52,7.6801]
[1718525513915,20.01172827,144.56,144.53,15.3598]
[1718525514086,30.24972827,144.56,144.53,23.0397]
[1718525514292,7.21412827,144.56,144.54,12.7989]
[1718525514604,9.77362827,144.56,144.54,25.5978]
[1718525514806,2.5595,144.56,144.54,25.5978]
[1718525515121,2.5595,144.56,144.54,7.6793]
[1718525516003,2.5595,144.56,144.54,15.3588]
[1718525516521,7.6784,144.56,144.54,2.5597]
[1718525517097,15.3568,144.56,144.54,2.5597]
[1718525517396,7.6784,144.56,144.54,2.5597]
[1718525517597,7.6784,144.56,144.54,7.6793]
[1718525517897,2.5595,144.56,144.54,7.6793]
[1718525518322,2.5595,144.56,144.54,15.3587]
[1718525518735,2.5595,144.56,144.55,2.5596]
[1718525519230,25.5941,144.57,144.55,2.5596]
[1718525520125,7.6782,144.57,144.55,2.5596]
[1718525520306,7.6782,144.57,144.55,7.6789]
[1718525520632,2.5594,144.57,144.55,15.3578]
[1718525522028,15.3569,144.56,144.54,2.5597]
[1718525522243,7.6785,144.56,144.54,2.5597]
[1718525523161,2.5595,144.56,144.54,7.6793]
[1718525523454,2.5595,144.56,144.54,15.3587]
[1718525524135,2.5595,144.56,144.53,7.6797]
[1718525524136,2.5597,144.55,144.53,7.6797]
[1718525524344,7.6786,144.56,144.53,12.7995]
[1718525524844,7.6786,144.56,144.53,7.6796]
[1718525524845,7.6789,144.55,144.53,7.6796]
[1718525525024,7.6789,144.55,144.53,2.5598]
[1718525525347,22.57172628,144.55,144.53,2.5598]
[1718525526341,14.89272628,144.55,144.53,2.5598]
[1718525529561,9.77342628,144.55,144.53,7.6798]
[1718525530633,9.77342628,144.55,144.53,15.3598]
[1718525532043,9.77342628,144.55,144.53,7.6798]
[1718525534366,9.77342628,144.55,144.53,15.3598]
[1718525534552,9.77342628,144.55,144.53,7.6798]
[1718525535358,22.57182628,144.55,144.53,2.5598]
[1718525536967,2.5598,144.54,144.52,25.6008]
[1718525538044,2.5598,144.54,144.52,7.6803]
[1718525538638,7.6795,144.54,144.52,7.6803]
[1718525538841,2.5598,144.54,144.52,7.6803]
[1718525540041,30.25092628,144.55,144.52,7.6803]
[1718525540042,32.81072628,144.55,144.52,15.3608]
[1718525540240,14.89312628,144.55,144.53,2.56]
[1718525540862,22.57212628,144.55,144.53,2.56]
[1718525541357,14.89312628,144.55,144.53,2.56]
[1718525541866,22.57212628,144.55,144.53,2.56]
[1718525542041,22.57212628,144.55,144.52,25.6015]
[1718525542961,2.5598,144.54,144.52,25.6015]
[1718525544445,2.5598,144.54,144.52,7.6803]
[1718525544647,7.6794,144.54,144.52,2.56]
[1718525546060,2.5598,144.54,144.52,7.6803]
[1718525546942,7.6795,144.54,144.52,2.56]
[1718525547972,2.5598,144.54,144.52,7.6803]
[1718525548680,32.81072628,144.55,144.52,15.3608]
[1718525548891,32.81072628,144.55,144.52,23.0415]
[1718525549053,32.81072628,144.55,144.53,2.5599]
[1718525549855,32.81072628,144.55,144.52,25.6015]
[1718525550056,2.5598,144.54,144.52,17.921]
[1718525550251,2.5598,144.54,144.52,7.6803]
[1718525551581,23.0388,144.54,144.51,15.3619]
[1718525551754,2.56,144.53,144.51,7.6809]
[1718525552382,9.77477714,144.53,144.51,7.6809]
[1718525553392,14.89487714,144.53,144.51,2.5602]
[1718525553558,22.57487714,144.53,144.5,25.6044]
[1718525553955,22.57487714,144.53,144.5,2.5603]
[1718525553956,7.6806,144.52,144.5,2.5603]
[1718525554981,2.5602,144.52,144.5,2.5603]
[1718525555150,2.5602,144.52,144.5,7.6813]
[1718525555978,32.81537714,144.53,144.5,7.6813]
[1718525556157,2.5602,144.52,144.5,7.6813]
[1718525556560,30.25527714,144.53,144.5,7.6813]
[1718525556767,30.25527714,144.53,144.5,15.3629]
[1718525556974,2.5602,144.52,144.5,15.3629]
[1718525557877,2.5602,144.52,144.5,7.6813]
[1718525558887,7.6806,144.52,144.5,2.5603]
[1718525561972,15.3612,144.52,144.49,25.606]
[1718525563895,2.5603,144.51,144.49,25.606]
[1718525564098,14.89528625,144.51,144.49,2.5605]
[1718525564304,23.045,144.5,144.47,2.5609]
[1718525564514,2.5607,144.49,144.46,34.0824]
[1718525564808,25.6058,144.5,144.47,7.683]
[1718525564997,25.6058,144.5,144.47,15.3662]
[1718525565199,7.6819,144.5,144.48,2.5608]
[1718525567083,2.5607,144.5,144.48,2.5608]
[1718525567800,7.21428625,144.51,144.49,2.5605]
[1718525568001,9.77468625,144.51,144.49,2.5605]
[1718525568174,22.57658625,144.51,144.48,25.6077]
[1718525568381,7.6817,144.5,144.47,25.61]
[1718525568887,15.3633,144.5,144.47,25.61]
[1718525569306,15.3633,144.5,144.47,17.927]
[1718525570004,2.5607,144.49,144.47,7.6828]
[1718525570300,25.6056,144.5,144.47,7.6828]
[1718525571425,25.6056,144.5,144.47,15.3659]
[1718525572895,5.1219,144.48,144.45,7.6839]
[1718525573091,2.561,144.47,144.45,7.6838]
[1718525573521,7.6829,144.48,144.45,15.3681]
[1718525574026,2.561,144.48,144.46,2.5612]
[1718525574320,7.6825,144.49,144.47,2.561]
[1718525574520,7.2132413,144.48,144.46,25.6121]
[1718525575919,7.2132413,144.48,144.45,15.3678]
[1718525575920,14.8959413,144.48,144.45,15.3678]
[1718525576114,14.8959413,144.48,144.46,2.5612]
[1718525576910,14.8959413,144.48,144.45,25.6134]
[1718525577111,14.8959413,144.48,144.46,2.5612]
[1718525577315,14.8959413,144.48,144.45,23.0522]
[1718525577520,14.8959413,144.48,144.45,25.6134]
[1718525578024,22.5786413,144.48,144.45,25.6134]
[1718525579023,32.8223413,144.48,144.45,7.6838]
[1718525579210,2.5611,144.47,144.45,2.5612]
[1718525579413,2.5611,144.47,144.45,7.684]
[1718525579627,32.8223413,144.48,144.45,7.684]
[1718525580227,25.1396413,144.48,144.45,15.3682]
[1718525580535,32.8223413,144.48,144.45,15.3682]
[1718525582032,32.8223413,144.48,144.45,7.684]
[1718525582333,2.561,144.47,144.45,7.684]
[1718525583117,32.8223413,144.48,144.45,7.684]
[1718525584430,2.5611,144.47,144.45,7.684]
[1718525585141,2.5611,144.47,144.45,2.5612]
[1718525585335,7.6833,144.47,144.44,25.6147]
[1718525585735,7.6833,144.47,144.45,2.5614]
[1718525586237,7.2132413,144.48,144.46,5.1224]
[1718525586411,7.2132413,144.48,144.47,2.561]
[1718525587019,7.2132413,144.48,144.46,23.0507]
[1718525587020,7.2132413,144.48,144.46,25.6118]
[1718525587228,7.2132413,144.48,144.47,15.3663]
[1718525587433,7.2132413,144.48,144.47,25.6106]
[1718525587635,15.3625,144.51,144.48,15.3649]
[1718525587939,2.5605,144.5,144.48,7.6824]
[1718525588248,9.77216868,144.51,144.48,12.8041]
[1718525588431,20.01366868,144.51,144.48,17.9259]
[1718525588619,7.6817,144.5,144.48,2.5608]
[1718525589015,7.6817,144.5,144.47,25.6097]
[1718525589243,7.6817,144.5,144.48,2.5608]
[1718525589551,7.21176868,144.51,144.49,7.6819]
[1718525589848,9.77216868,144.51,144.49,7.6819]
[1718525590325,7.21176868,144.51,144.49,7.6819]
[1718525590526,9.77206868,144.51,144.49,7.6819]
[1718525590840,7.21176868,144.51,144.49,7.6819]
[1718525591163,7.21176868,144.51,144.49,12.8033]
[1718525591374,7.21176868,144.51,144.5,7.6816]
[1718525591648,7.21176868,144.51,144.5,2.5605]
[1718525592646,7.21176868,144.51,144.5,7.6816]
[1718525592836,7.21176868,144.51,144.5,25.6054]
[1718525594866,2.56,144.53,144.51,7.6809]
[1718525595071,25.5987,144.54,144.51,7.6809]
[1718525595241,32.80864447,144.54,144.51,15.3619]
[1718525596073,2.56,144.53,144.51,7.6809]
[1718525596744,2.56,144.53,144.51,2.5602]
[1718525597768,32.80864447,144.54,144.51,15.362]
[1718525598066,2.56,144.53,144.51,7.6809]
[1718525598548,2.56,144.53,144.51,2.5602]
[1718525598748,2.5604,144.51,144.49,2.5607]
[1718525598954,7.6811,144.51,144.48,15.3648]
[1718525599142,2.5604,144.51,144.49,7.682]
[1718525599344,2.5603,144.51,144.49,7.682]
[1718525599558,25.6031,144.52,144.49,15.3641]
[1718525599758,2.5603,144.52,144.5,2.5605]
[1718525599987,5.1202,144.53,144.51,2.5603]
[1718525600155,2.56,144.53,144.51,2.5603]
[1718525600978,7.68,144.53,144.51,2.5603]
[1718525602957,2.56,144.53,144.51,2.5603]
[1718525605883,15.3601,144.53,144.5,25.6047]
[1718525606095,7.21011861,144.54,144.47,15.8614]
[1718525606383,22.56941861,144.54,144.51,7.6808]
[1718525606687,22.56941861,144.54,144.51,15.3618]
[1718525607191,2.56,144.53,144.51,7.6808]
[1718525607357,2.56,144.53,144.51,2.5602]
[1718525608255,7.68,144.53,144.51,2.5602]
[1718525610190,7.68,144.53,144.5,25.604]
[1718525610682,7.68,144.53,144.51,2.5603]
[1718525610977,12.801,144.52,144.49,7.6817]
[1718525611207,7.6813,144.51,144.49,2.5607]
[1718525611386,7.6817,144.5,144.48,2.5608]
[1718525611555,7.21011861,144.54,144.48,7.6824]
[1718525611556,5.1209,144.51,144.48,7.6824]
[1718525611753,2.5605,144.5,144.48,7.6824]
[1718525611956,23.0438,144.51,144.48,7.6824]
[1718525611957,25.6043,144.51,144.48,15.3651]
[1718525612179,7.6814,144.51,144.49,2.5606]
[1718525612383,2.5605,144.51,144.49,7.682]
[1718525612565,7.6809,144.52,144.49,12.8034]
[1718525612769,7.6809,144.52,144.5,2.5605]
[1718525613169,2.5603,144.52,144.5,2.5605]
[1718525613564,25.601,144.53,144.5,15.3631]
[1718525614085,25.601,144.53,144.51,2.5603]
[1718525614488,7.6803,144.53,144.51,2.5603]
[1718525614667,2.5601,144.52,144.5,25.6051]
[1718525614986,2.5601,144.52,144.5,7.6814]
[1718525617807,25.6006,144.53,144.5,15.363]
[1718525618269,7.6803,144.53,144.51,2.5603]
[1718525618470,15.3603,144.53,144.51,2.5603]
[1718525618713,15.3603,144.53,144.5,25.605]
[1718525619509,15.3603,144.53,144.51,2.5603]
[1718525619677,7.6803,144.53,144.51,2.5603]
[1718525621103,15.3604,144.53,144.5,25.6049]
[1718525621401,25.6005,144.53,144.5,25.6049]
[1718525621998,25.6005,144.53,144.51,2.5603]
[1718525623504,2.5602,144.52,144.5,25.6049]
[1718525623722,2.5602,144.52,144.5,7.6813]
[1718525624008,7.6806,144.52,144.5,2.5603]
[1718525624396,14.89070624,144.52,144.5,2.5603]
[1718525624587,9.77030624,144.52,144.5,7.6814]
[1718525625014,9.77030624,144.52,144.5,15.363]
[1718525626618,7.21010624,144.52,144.51,2.5603]
[1718525629119,7.21010624,144.52,144.51,7.681]
[1718525629710,7.21010624,144.52,144.51,15.3621]
[1718525633332,7.21010624,144.52,144.51,7.681]
[1718525633535,2.5604,144.51,144.49,2.5606]
[1718525633713,32.81270624,144.52,144.5,2.5605]
[1718525633913,7.6811,144.51,144.49,7.6818]
[1718525634213,7.6811,144.51,144.49,2.5605]
[1718525634515,2.5604,144.51,144.49,7.6819]
[1718525635827,32.81270624,144.52,144.49,12.8035]
[1718525636136,32.81270624,144.52,144.5,2.5605]
[1718525637107,9.77040624,144.52,144.5,7.6816]
[1718525637742,7.21010624,144.52,144.51,2.5603]
[1718525638129,9.77030624,144.52,144.5,17.9236]
[1718525638520,14.89070624,144.52,144.5,2.5604]
[1718525639018,9.77030624,144.52,144.5,2.5604]
[1718525639664,7.21010624,144.52,144.51,2.5603]
[1718525642050,7.21010624,144.52,144.5,25.6047]
[1718525642621,9.77030624,144.52,144.5,2.5603]
[1718525646444,14.89070624,144.52,144.5,2.5603]
[1718525653232,22.57130624,144.52,144.5,2.5603]
[1718525653757,22.57130624,144.52,144.49,25.606]
[1718525654746,22.57130624,144.52,144.5,2.5605]
[1718525655731,14.89070624,144.52,144.5,2.5605]
[1718525657634,9.77030624,144.52,144.5,7.6815]
[1718525657836,7.21010624,144.52,144.5,15.3631]
[1718525658057,9.77030624,144.52,144.5,15.3631]
[1718525659467,7.21010624,144.52,144.5,15.3631]
[1718525659675,7.21010624,144.52,144.51,2.5603]
[1718525660542,7.21010624,144.52,144.5,23.0447]
[1718525660775,7.21010624,144.52,144.5,25.6051]
[1718525661679,9.77030624,144.52,144.5,25.6051]
[1718525662353,9.77030624,144.52,144.5,7.6814]
[1718525664854,14.89070624,144.52,144.5,2.5604]
[1718525665478,22.57130624,144.52,144.5,2.5604]
[1718525666180,30.25190624,144.52,144.49,23.0454]
[1718525666578,32.81220624,144.52,144.5,2.5605]
[1718525666779,32.81220624,144.52,144.44,6.0522]
[1718525666780,5.1207,144.51,144.44,6.0522]
[1718525666981,2.5606,144.5,144.48,2.5609]
[1718525667183,23.0451,144.5,144.47,15.3659]
[1718525667384,7.6815,144.51,144.48,23.0476]
[1718525667558,7.6815,144.51,144.49,7.6821]
[1718525667559,7.21997088,144.5,144.49,7.6821]
[1718525667766,7.21997088,144.5,144.49,2.5607]
[1718525668672,14.90167088,144.5,144.48,2.5607]
[1718525668978,12.34107088,144.5,144.47,5.1219]
[1718525669177,12.34107088,144.5,144.46,25.612]
[1718525669178,25.6076,144.49,144.46,25.612]
[1718525669492,2.5609,144.48,144.46,25.612]
[1718525669874,2.5609,144.48,144.46,7.6834]
[1718525670063,25.6076,144.49,144.46,15.3671]